bitfinex-derivatives/quotes_SOLF0:USTF0_20240905
["timestamp","ask_amount","ask_price","bid_price","bid_amount"]
[1725496043635,0.05735434,134.19,134.17,0.04884467]
[1725496045935,0.05735434,134.19,134.17,3.77554467]
[1725496046141,1.381,134.29,134.17,3.77554467]
[1725496046142,3.7253,134.23,134.18,25.73]
[1725496046346,25.73,134.28,134.18,25.73]
[1725496046539,27.1092,134.28,134.18,29.4563]
[1725496047238,27.1092,134.28,134.22,0.04827487]
[1725496047239,0.05510777,134.24,134.22,0.04827487]
[1725496047635,3.7251,134.23,134.22,0.04827487]
[1725496049444,0.05510777,134.24,134.22,0.04827487]
[1725496049946,3.7251,134.23,134.22,0.04827487]
[1725496052349,0.05510777,134.24,134.22,0.04827487]
[1725496054044,3.77990777,134.24,134.22,0.04827487]
[1725496058346,0.05510777,134.24,134.22,0.04827487]
[1725496058948,0.05510777,134.24,134.22,3.77357487]
[1725496059549,0.05510777,134.24,134.22,0.04827487]
[1725496060951,3.78000777,134.24,134.22,0.04827487]
[1725496061751,3.7251,134.23,134.22,0.04827487]
[1725496064054,0.05510777,134.24,134.07,233.459]
[1725496064356,25.73,134.25,134.15,25.73]
[1725496064554,3.7258,134.21,134.17,3.7266]
[1725496065056,0.04805511,134.2,134.18,0.05011829]
[1725496065255,3.77405511,134.2,134.18,0.05011829]
[1725496066452,0.04805511,134.2,134.18,3.77661829]
[1725496067251,0.04805511,134.2,134.18,0.05011829]
[1725496069459,3.77405511,134.2,134.18,0.05011829]
[1725496070954,0.04805511,134.2,134.18,3.77661829]
[1725496073558,3.7253,134.23,134.19,3.726]
[1725496073763,25.73,134.27,134.19,3.726]
[1725496073959,10.3,134.26,134.19,14.026]
[1725496074158,3.7253,134.23,134.19,14.026]
[1725496074459,3.7253,134.23,134.2,3.7258]
[1725496074658,3.78246624,134.23,134.2,3.78274951]
[1725496076359,3.7254,134.22,134.2,3.78274951]
[1725496077166,3.7254,134.22,134.2,0.05694951]
[1725496084770,3.7256,134.21,134.2,0.05694951]
[1725496097381,3.7254,134.22,134.2,0.05694951]
[1725496101094,3.78236624,134.23,134.2,3.78284951]
[1725496101393,3.78236624,134.23,134.2,10.35694951]
[1725496101394,0.05716624,134.23,134.2,10.35694951]
[1725496102285,0.05716624,134.23,134.21,3.7256]
[1725496103193,0.05716624,134.23,134.22,14.0254]
[1725496104790,1.0009,134.31,134.23,3.725]
[1725496104791,3.724,134.27,134.23,3.725]
[1725496105093,10.3,134.29,134.23,14.025]
[1725496105292,10.3,134.28,134.22,11.6299]
[1725496105999,3.77758638,134.26,134.24,0.053808]
[1725496107600,0.05328638,134.26,134.24,0.053808]
[1725496108901,3.77758638,134.26,134.24,0.053808]
[1725496109698,0.05328638,134.26,134.25,3.7245]
[1725496113197,0.05328638,134.26,134.24,14.078508]
[1725496113406,0.05328638,134.26,134.24,3.778508]
[1725496114106,10.35328638,134.26,134.24,0.053808]
[1725496115304,14.0245,134.25,134.24,0.053808]
[1725496116408,3.7245,134.25,134.24,0.053808]
[1725496134918,3.77768638,134.26,134.24,0.053808]
[1725496137115,0.05328638,134.26,134.24,0.053808]
[1725496137326,22.36,134.34,134.24,0.053808]
[1725496137327,10.3586504,134.43,134.25,10.3]
[1725496137512,10.3,134.34,134.25,1.3413]
[1725496137717,3.65982943,134.34,134.25,4.99293189]
[1725496138019,10.3,134.33,134.26,10.3]
[1725496138216,1.4011,134.36,134.28,10.3]
[1725496138416,10.3,134.35,134.28,10.3]
[1725496138718,0.03997477,134.33,134.31,0.05277171]
[1725496140027,0.03997477,134.33,134.31,10.35277171]
[1725496140325,0.03997477,134.33,134.32,10.3]
[1725496140623,0.03997477,134.33,134.32,13.97328954]
[1725496141324,0.03997477,134.33,134.32,17.69588954]
[1725496142214,0.03997477,134.33,134.31,0.05277171]
[1725496149629,0.03997477,134.33,134.31,10.35277171]
[1725496149832,0.03997477,134.33,134.32,17.71880253]
[1725496150531,0.03997477,134.33,134.32,19.15340253]
[1725496152231,3.7213,134.37,134.32,15.4572]
[1725496152426,3.78322042,134.4,134.34,10.3]
[1725496152631,88.97540143,134.41,134.35,10.3]
[1725496153031,3.7215,134.37,134.35,10.3]
[1725496153435,3.7215,134.37,134.35,10.34907097]
[1725496154030,10.3,134.4,134.35,0.04907097]
[1725496154535,3.721,134.38,134.35,0.04907097]
[1725496160144,10.3,134.4,134.35,0.04907097]
[1725496160545,3.7212,134.38,134.35,0.04907097]
[1725496161048,3.7213,134.37,134.35,0.04907097]
[1725496163655,3.7215,134.36,134.35,0.04907097]
[1725496166156,3.7213,134.37,134.35,0.04907097]
[1725496170454,3.69574927,134.41,134.35,3.77077097]
[1725496170758,10.3,134.41,134.35,3.77077097]
[1725496170956,3.74488424,134.4,134.35,3.77077097]
[1725496171358,3.721,134.38,134.35,3.77077097]
[1725496173358,3.721,134.38,134.35,14.07077097]
[1725496175262,3.74497543,134.39,134.35,0.04907097]
[1725496175461,10.3,134.4,134.36,0.04858734]
[1725496175763,3.7215,134.37,134.36,0.04858734]
[1725496177061,3.7222,134.34,134.32,3.67351496]
[1725496177364,10.3,134.35,134.29,10.3]
[1725496177560,3.7224,134.33,134.29,10.3]
[1725496177760,10.3,134.35,134.3,3.7231]
[1725496178259,0.04858734,134.34,134.31,0.05235534]
[1725496178461,3.77078734,134.34,134.31,0.05235534]
[1725496178968,0.04858734,134.34,134.31,0.05235534]
[1725496179859,3.7225,134.33,134.31,0.05235534]
[1725496180763,0.04858734,134.34,134.31,0.05235534]
[1725496181765,3.7224,134.33,134.31,0.05235534]
[1725496183471,3.7226,134.32,134.31,0.05235534]
[1725496183673,14.0226,134.32,134.31,0.05235534]
[1725496186775,3.7226,134.32,134.31,0.05235534]
[1725496187376,14.0226,134.32,134.31,0.05235534]
[1725496190377,3.724,134.28,134.25,10.3]
[1725496191068,3.724,134.28,134.25,14.09384821]
[1725496191479,3.77815957,134.28,134.25,14.14893199]
[1725496192578,3.77815957,134.28,134.25,17.87343199]
[1725496192579,0.05415957,134.28,134.25,17.87343199]
[1725496192975,0.05415957,134.28,134.25,14.14893199]
[1725496193175,3.77795957,134.28,134.25,14.14893199]
[1725496194378,3.77795957,134.28,134.25,17.87343199]
[1725496195675,0.05415957,134.28,134.25,14.14893199]
[1725496195877,0.05415957,134.28,134.25,0.05508378]
[1725496197778,3.7242,134.27,134.25,0.05508378]
[1725496197971,3.7242,134.27,134.25,10.35508378]
[1725496199476,0.05415957,134.28,134.25,0.05508378]
[1725496199680,3.7243,134.26,134.25,0.05508378]
[1725496199878,14.0243,134.26,134.25,0.05508378]
[1725496200978,3.7243,134.26,134.25,0.05508378]
[1725496202784,10.3,134.26,134.08,335.0]
[1725496202979,10.3,134.24,134.18,10.3]
[1725496203178,10.3,134.24,134.19,3.68748207]
[1725496203379,10.3,134.24,134.18,10.3]
[1725496203778,0.05314785,134.22,134.2,0.05123955]
[1725496204081,3.7256,134.21,134.2,0.05123955]
[1725496207389,3.77854785,134.22,134.2,0.05123955]
[1725496208882,0.05314785,134.22,134.2,0.05123955]
[1725496209287,0.05314785,134.22,134.21,3.71459324]
[1725496210290,3.77864785,134.22,134.21,3.71459324]
[1725496213991,0.05314785,134.22,134.21,3.71459324]
[1725496219198,3.77854785,134.22,134.21,3.71459324]
[1725496219792,3.7256,134.21,134.2,0.05123955]
[1725496221603,3.77864785,134.22,134.2,0.05123955]
[1725496221998,0.05314785,134.22,134.2,0.05123955]
[1725496223503,3.7256,134.21,134.2,0.05123955]
[1725496228400,0.05314785,134.22,134.2,0.05123955]
[1725496228607,3.77874785,134.22,134.2,0.05123955]
[1725496228805,0.05314785,134.22,134.2,0.05123955]
[1725496230406,3.7256,134.21,134.2,0.05123955]
[1725496230897,3.77864785,134.22,134.2,0.05123955]
[1725496233515,3.7256,134.21,134.2,0.05123955]
[1725496243517,3.77864785,134.22,134.2,0.05123955]
[1725496244021,0.05314785,134.22,134.2,0.05123955]
[1725496245519,3.7256,134.21,134.2,0.05123955]
[1725496247819,14.0256,134.21,134.2,0.05123955]
[1725496248015,3.7266,134.18,134.15,1.4274]
[1725496248215,3.7266,134.18,134.15,5.13155921]
[1725496248421,10.3,134.21,134.15,5.13155921]
[1725496248621,3.7264,134.19,134.15,5.13155921]
[1725496249118,0.05727474,134.18,134.16,0.05053622]
[1725496253524,0.05727474,134.18,134.16,3.77753622]
[1725496254729,0.05727474,134.18,134.16,0.05053622]
[1725496256219,0.05727474,134.18,134.16,3.77743622]
[1725496258729,0.05727474,134.18,134.16,0.05053622]
[1725496260337,3.78387474,134.18,134.16,0.05053622]
[1725496260823,3.7268,134.17,134.16,0.05053622]
[1725496261223,17.81351537,134.17,134.16,0.05053622]
[1725496262322,10.3,134.17,134.0,176.28846855]
[1725496262528,10.3,134.12,134.05,10.3]
[1725496262728,1.3556,134.16,134.06,3.7147756]
[1725496262729,10.3,134.1,134.06,3.7147756]
[1725496262927,41.2,134.14,134.03,3.70769345]
[1725496262928,10.3,134.08,134.03,3.70769345]
[1725496263125,10.3,134.08,134.01,4.2286]
[1725496263126,10.3,134.06,134.01,4.2286]
[1725496263330,0.05347576,134.05,134.02,0.05253022]
[1725496263736,3.78377576,134.05,134.02,0.05253022]
[1725496264032,0.05347576,134.05,134.02,0.05253022]
[1725496264227,3.78367576,134.05,134.02,0.05253022]
[1725496264633,0.05347576,134.05,134.02,0.05253022]
[1725496264833,0.05347576,134.05,134.04,10.3]
[1725496265135,0.05347576,134.05,134.02,0.05253022]
[1725496265136,0.05347576,134.05,134.03,10.3]
[1725496266334,0.05347576,134.05,134.02,11.72563022]
[1725496267334,0.05347576,134.05,134.03,10.3]
[1725496267934,0.05347576,134.05,134.02,0.05253022]
[1725496268437,3.78357576,134.05,134.02,0.05253022]
[1725496271325,3.7304,134.04,134.02,0.05253022]
[1725496271733,0.05347576,134.05,134.02,0.05253022]
[1725496272441,3.7305,134.04,134.02,0.05253022]
[1725496272640,0.05347576,134.05,134.03,10.3]
[1725496274534,0.05347576,134.05,134.02,14.08343022]
[1725496275036,3.78377576,134.05,134.02,10.35253022]
[1725496277929,3.78377576,134.05,134.02,14.08343022]
[1725496278130,0.05347576,134.05,134.03,10.3]
[1725496278533,0.05347576,134.05,134.03,14.0305]
[1725496280538,0.05347576,134.05,134.03,10.3]
[1725496280932,0.05347576,134.05,134.02,14.08323022]
[1725496282332,0.05347576,134.05,134.03,3.7306]
[1725496282542,0.05347576,134.05,134.03,14.0306]
[1725496283736,0.05347576,134.05,134.03,3.7306]
[1725496283937,3.78357576,134.05,134.02,3.78333022]
[1725496287138,0.05347576,134.05,134.02,0.05253022]
[1725496287338,3.7306,134.03,134.02,0.05253022]
[1725496289845,3.7304,134.04,134.02,0.05253022]
[1725496290042,0.05347576,134.05,134.02,0.05253022]
[1725496290950,0.05347576,134.05,134.02,10.35253022]
[1725496291143,0.05347576,134.05,134.02,11.69473022]
[1725496291338,0.05347576,134.05,134.04,3.7304]
[1725496291547,0.05347576,134.05,134.04,14.0304]
[1725496291854,0.05347576,134.05,134.03,14.0306]
[1725496294345,3.78367576,134.05,134.02,3.78343022]
[1725496294549,0.05347576,134.05,134.02,3.78343022]
[1725496295248,0.05347576,134.05,134.03,3.7306]
[1725496296151,0.05347576,134.05,134.04,14.0304]
[1725496297148,15.46172896,134.13,134.04,10.3]
[1725496297354,10.3,134.13,134.06,10.3]
[1725496297653,3.7286,134.11,134.07,3.7293]
[1725496298248,0.05009641,134.1,134.08,0.05506826]
[1725496298449,0.05009641,134.1,134.09,14.029]
[1725496300251,0.05009641,134.1,134.09,10.3]
[1725496300456,0.05009641,134.1,134.08,3.78426826]
[1725496301453,0.05009641,134.1,134.09,3.729]
[1725496303557,0.05009641,134.1,134.09,14.029]
[1725496304755,0.05009641,134.1,134.08,3.78416826]
[1725496305955,0.05009641,134.1,134.09,3.729]
[1725496306160,0.05009641,134.1,134.09,14.029]
[1725496307158,10.3,134.2,134.13,10.3]
[1725496307660,3.7271,134.16,134.13,14.0278]
[1725496308160,3.78259517,134.16,134.13,3.78442626]
[1725496309153,0.05549517,134.16,134.13,0.05662626]
[1725496309356,0.05549517,134.16,134.13,10.35662626]
[1725496309958,3.78269517,134.16,134.13,10.35662626]
[1725496311158,3.77045192,134.16,134.13,0.05662626]
[1725496311549,10.3,134.15,134.13,0.05662626]
[1725496311959,3.7276,134.14,134.13,0.05662626]
[1725496320356,14.13430045,134.16,134.13,0.05662626]
[1725496320562,10.3,134.14,134.07,14.3596]
[1725496320752,10.3,134.12,134.08,3.72883883]
[1725496320957,10.3,134.11,134.06,10.3]
[1725496321858,0.05511825,134.1,134.07,0.05557749]
[1725496323656,3.78381825,134.1,134.07,0.05557749]
[1725496323966,0.05511825,134.1,134.07,14.08507749]
[1725496325262,3.78381825,134.1,134.07,10.35557749]
[1725496327358,0.05511825,134.1,134.07,14.08507749]
[1725496328264,0.05511825,134.1,134.08,3.7292]
[1725496328463,0.05511825,134.1,134.09,10.3]
[1725496331880,0.05511825,134.1,134.07,0.05557749]
[1725496332877,0.05511825,134.1,134.07,10.35557749]
[1725496333078,0.05511825,134.1,134.07,14.08507749]
[1725496333380,0.05511825,134.1,134.07,10.35557749]
[1725496334271,3.78381825,134.1,134.07,10.35557749]
[1725496335171,0.05511825,134.1,134.09,14.029]
[1725496336168,13.94846721,134.18,134.12,3.7281]
[1725496336372,10.3,134.18,134.12,13.99060938]
[1725496336573,3.7273,134.15,134.12,13.99060938]
[1725496337176,3.78046084,134.15,134.12,14.04628988]
[1725496338277,3.78046084,134.15,134.12,3.74628988]
[1725496341288,0.05316084,134.15,134.12,0.0556805]
[1725496341989,3.7277,134.14,134.12,0.0556805]
[1725496342389,3.7277,134.14,134.12,3.73641247]
[1725496342587,3.7277,134.14,134.12,14.03641247]
[1725496342793,3.7279,134.13,134.12,0.0556805]
[1725496349200,14.0279,134.13,134.12,0.0556805]
[1725496349599,3.7279,134.13,134.12,0.0556805]
[1725496352893,14.0279,134.13,134.12,0.0556805]
[1725496353095,3.7292,134.09,134.06,13.0205]
[1725496353291,3.7292,134.09,134.06,16.70411713]
[1725496354097,3.77998762,134.09,134.06,16.75167072]
[1725496354703,3.7293,134.08,134.06,16.75167072]
[1725496356900,3.77988762,134.09,134.06,16.75167072]
[1725496357203,3.77988762,134.09,134.07,10.3]
[1725496360701,3.7293,134.08,134.06,16.75167072]
[1725496361802,3.7293,134.08,134.07,10.3]
[1725496368011,0.05078762,134.09,134.07,14.0294]
[1725496368210,0.05078762,134.09,134.08,10.3]
[1725496372211,1.0056,134.17,134.08,10.3]
[1725496372407,10.3,134.16,134.1,10.3]
[1725496372908,3.728,134.13,134.1,10.3]
[1725496373410,3.77979475,134.13,134.1,10.35675679]
[1725496374902,3.7282,134.12,134.1,0.05675679]
[1725496377910,3.77979475,134.13,134.1,0.05675679]
[1725496378117,3.77979475,134.13,134.1,10.35675679]
[1725496378512,3.7281,134.12,134.1,10.35675679]
[1725496378709,1.4217,134.2,134.11,10.3]
[1725496378912,15.42918806,134.2,134.14,10.3]
[1725496379121,3.7271,134.16,134.11,2.8352]
[1725496379307,10.3,134.19,134.11,2.8352]
[1725496379512,10.3,134.19,134.12,10.3]
[1725496379913,10.3,134.19,134.14,0.05725661]
[1725496379914,0.0530299,134.17,134.14,0.05725661]
[1725496380616,3.727,134.16,134.14,0.05725661]
[1725496383614,0.0530299,134.17,134.14,0.05725661]
[1725496384120,3.7273,134.15,134.14,0.05725661]
[1725496386314,14.0273,134.15,134.14,0.05725661]
[1725496390727,3.7273,134.15,134.14,0.05725661]
[1725496401119,3.7271,134.16,134.14,0.05725661]
[1725496401518,3.727,134.16,134.14,0.05725661]
[1725496401722,0.0530299,134.17,134.14,0.05725661]
[1725496402421,3.7273,134.15,134.14,0.05725661]
[1725496409537,3.7284,134.11,134.08,1.3893]
[1725496409734,68.72918806,134.2,134.08,5.06071472]
[1725496409735,13.94904168,134.13,134.08,5.06071472]
[1725496409930,13.94904168,134.13,134.08,3.67141472]
[1725496410535,0.05716124,134.12,134.09,0.05106238]
[1725496410734,14.04199978,134.12,134.09,0.05106238]
[1725496411034,10.35716124,134.12,134.09,0.05106238]
[1725496411232,3.7287,134.1,134.09,0.05106238]
[1725496414840,3.7285,134.11,134.09,0.05106238]
[1725496415044,3.7285,134.11,134.09,10.35106238]
[1725496417042,3.7287,134.1,134.09,0.05106238]
[1725496417945,14.0287,134.1,134.09,0.05106238]
[1725496418646,17.80816881,134.1,134.09,0.05106238]
[1725496420944,7.50816881,134.1,134.09,0.05106238]
[1725496423144,3.7287,134.1,134.09,0.05106238]
[1725496426851,14.0287,134.1,134.09,0.05106238]
[1725496430244,10.3,134.1,134.02,1.3718]
[1725496430440,10.3,134.06,134.02,1.3718]
[1725496430640,3.7307,134.03,134.0,5.11616444]
[1725496430837,3.7307,134.03,134.0,1.3878]
[1725496431047,3.7305,134.04,134.0,5.17846551]
[1725496431245,0.05385333,134.03,134.0,6.63321831]
[1725496431848,3.77875817,134.03,134.0,6.63321831]
[1725496432145,0.05385333,134.03,134.0,5.24541831]
[1725496432854,3.731,134.02,134.0,1.4547528]
[1725496433347,3.731,134.02,134.0,5.18973302]
[1725496433545,3.731,134.02,134.0,1.4547528]
[1725496434147,3.731,134.02,134.0,5.14793885]
[1725496434344,3.731,134.02,134.0,1.4547528]
[1725496434858,3.731,134.02,134.0,5.22807717]
[1725496435350,3.7312,134.01,134.0,5.22807717]
[1725496436045,3.7312,134.01,134.0,1.4547528]
[1725496436246,3.7312,134.01,134.0,0.0550528]
[1725496437954,3.7309,134.02,134.0,0.0550528]
[1725496442453,0.05385333,134.03,134.0,0.0550528]
[1725496442454,3.7312,134.01,134.0,0.0550528]
[1725496442955,0.05385333,134.03,134.0,0.0550528]
[1725496443151,3.78465333,134.03,134.0,0.0550528]
[1725496443653,3.78465333,134.03,134.0,10.3550528]
[1725496444358,3.78465333,134.03,134.0,0.0550528]
[1725496444655,3.78465333,134.03,134.0,10.3550528]
[1725496445944,0.05385333,134.03,134.0,14.0865528]
[1725496446151,0.05385333,134.03,134.01,10.3]
[1725496446351,0.05385333,134.03,134.01,11.7455]
[1725496449452,0.05385333,134.03,134.01,15.4767]
[1725496450254,71.18766714,134.1,134.01,15.4767]
[1725496450255,3.7296,134.07,134.03,3.7306]
[1725496450451,3.69654097,134.09,134.04,10.3]
[1725496450852,10.3,134.09,134.02,10.3]
[1725496451052,13.95429764,134.09,134.02,10.3]
[1725496451453,3.7796385,134.07,134.04,0.051348]
[1725496452157,3.7796385,134.07,134.04,10.351348]
[1725496453860,3.7299,134.06,134.04,0.051348]
[1725496454158,3.7301,134.05,134.04,0.051348]
[1725496454762,3.7299,134.06,134.04,0.051348]
[1725496454951,0.0500385,134.07,134.04,0.051348]
[1725496455455,3.73,134.06,134.04,0.051348]
[1725496459160,3.7301,134.05,134.04,0.051348]
[1725496461155,10.3500385,134.07,134.04,0.051348]
[1725496461761,3.73,134.06,134.04,0.051348]
[1725496462464,0.0500385,134.07,134.04,0.051348]
[1725496463159,10.3,134.06,134.04,0.051348]
[1725496463361,3.7301,134.05,134.04,0.051348]
[1725496463860,14.0301,134.05,134.04,0.051348]
[1725496464265,3.7312,134.02,133.99,1.3376]
[1725496464468,7.40768701,134.02,133.99,1.3376]
[1725496464768,3.7312,134.02,133.99,1.3376]
[1725496465271,3.77944722,134.02,133.99,1.39245985]
[1725496467365,0.04824722,134.02,133.99,5.12415985]
[1725496467571,0.04824722,134.02,133.99,15.42415985]
[1725496467869,0.04824722,134.02,134.0,10.3]
[1725496468271,0.04824722,134.02,134.0,14.0315]
[1725496469862,0.04824722,134.02,134.0,10.3]
[1725496470166,0.04824722,134.02,133.99,18.27445985]
[1725496472164,3.77914722,134.02,133.99,18.27445985]
[1725496472366,0.04824722,134.02,133.99,14.54275985]
[1725496472666,3.7314,134.01,133.99,1.39245985]
[1725496475866,3.77934722,134.02,133.99,5.12415985]
[1725496476071,3.77934722,134.02,133.99,15.42415985]
[1725496476771,3.77934722,134.02,133.99,16.82945985]
[1725496479575,3.77934722,134.02,133.99,6.52945985]
[1725496479877,3.72864209,134.02,133.99,1.39245985]
[1725496480573,3.7312,134.01,133.99,1.39245985]
[1725496480773,0.04824722,134.02,133.99,11.69245985]
[1725496481773,3.77924722,134.02,133.99,11.69245985]
[1725496484774,3.7313,134.01,133.99,11.69245985]
[1725496485272,3.7313,134.01,133.99,10.35485985]
[1725496485578,3.7313,134.01,133.99,0.05485985]
[1725496486373,3.7312,134.01,133.99,0.05485985]
[1725496488570,3.7315,134.0,133.99,0.05485985]
[1725496490877,0.04824722,134.02,133.99,10.35485985]
[1725496491780,3.7312,134.01,133.99,0.05485985]
[1725496493886,3.7315,134.0,133.99,0.05485985]
[1725496495387,3.7313,134.01,133.99,3.71873295]
[1725496498193,3.7313,134.01,133.99,0.05485985]
[1725496501192,3.7315,134.0,133.99,0.05485985]
[1725496502692,10.3,134.01,133.91,1.3911]
[1725496502893,10.3,133.99,133.94,3.733]
[1725496503399,3.7322,133.98,133.94,3.733]
[1725496503701,0.05525486,133.97,133.95,0.04787997]
[1725496504001,3.78755486,133.97,133.95,0.04787997]
[1725496505895,0.05525486,133.97,133.95,0.04787997]
[1725496506202,0.05525486,133.97,133.95,10.34787997]
[1725496509801,0.05525486,133.97,133.95,0.04787997]
[1725496510511,3.78775486,133.97,133.95,0.04787997]
[1725496511995,3.7326,133.96,133.95,0.04787997]
[1725496512400,0.05525486,133.97,133.95,0.04787997]
[1725496514311,0.05525486,133.97,133.9,97.81790284]
[1725496514312,10.3,133.96,133.81,226.0]
[1725496514507,10.3,133.96,133.8,7.4739]
[1725496514508,10.3,133.94,133.87,2.6794]
[1725496514709,10.3,133.94,133.88,10.3]
[1725496515006,3.80976247,133.93,133.88,10.3]
[1725496515207,10.3,133.94,133.88,10.3]
[1725496515406,0.05004363,133.92,133.9,0.05479512]
[1725496515808,3.734,133.91,133.9,0.05479512]
[1725496525109,3.77688975,133.9,133.87,3.67045115]
[1725496525415,3.77688975,133.9,133.85,14.0355]
[1725496525913,3.7349,133.88,133.85,17.83629175]
[1725496526108,3.78403263,133.88,133.85,17.88544462]
[1725496526313,0.04913263,133.88,133.85,14.14994462]
[1725496527310,3.78413263,133.88,133.85,14.14994462]
[1725496528316,0.04913263,133.88,133.85,0.04915287]
[1725496528818,3.69965941,133.88,133.85,3.82857452]
[1725496529014,0.04913263,133.88,133.85,0.04915287]
[1725496529213,3.7354,133.86,133.85,0.04915287]
[1725496529418,0.04913263,133.88,133.85,0.04915287]
[1725496529820,3.7353,133.87,133.85,0.04915287]
[1725496530116,0.04913263,133.88,133.85,0.04915287]
[1725496530521,3.7353,133.87,133.85,0.04915287]
[1725496530817,0.04913263,133.88,133.85,0.04915287]
[1725496531414,14.0354,133.86,133.85,0.04915287]
[1725496531913,14.0354,133.86,133.79,10.3]
[1725496531914,3.7365,133.83,133.78,1.4216]
[1725496532219,10.3,133.83,133.78,1.4216]
[1725496532415,3.79137712,133.83,133.78,1.4216]
[1725496532621,3.7367,133.82,133.78,1.4216]
[1725496533215,3.78807872,133.81,133.79,0.05679012]
[1725496533616,3.78807872,133.81,133.79,10.35679012]
[1725496533617,0.05127872,133.81,133.79,10.35679012]
[1725496534713,0.05127872,133.81,133.79,14.09409012]
[1725496535116,0.05127872,133.81,133.79,15.50569012]
[1725496536219,0.05127872,133.81,133.8,14.0371]
[1725496536524,10.3,133.88,133.8,10.3]
[1725496536824,13.97693227,133.88,133.82,10.3]
[1725496537425,0.05366532,133.86,133.84,0.04968698]
[1725496537621,3.78926532,133.86,133.84,0.04968698]
[1725496540028,3.7357,133.85,133.84,0.04968698]
[1725496541530,3.78916532,133.86,133.84,0.04968698]
[1725496545432,0.05366532,133.86,133.84,3.70122531]
[1725496545733,0.05366532,133.86,133.84,0.04968698]
[1725496546131,3.78926532,133.86,133.84,3.75765002]
[1725496546332,3.78926532,133.86,133.84,0.04968698]
[1725496546632,0.05366532,133.86,133.84,0.04968698]
[1725496546821,0.05366532,133.86,133.84,3.75503431]
[1725496547430,0.05366532,133.86,133.84,17.79093431]
[1725496547935,0.05366532,133.86,133.85,14.0357]
[1725496548140,3.7345,133.9,133.85,10.3]
[1725496548434,3.7345,133.9,133.86,3.7353]
[1725496549037,0.05063589,133.89,133.86,3.7353]
[1725496549234,0.05063589,133.89,133.87,3.7351]
[1725496551537,0.05063589,133.89,133.84,5.12783431]
[1725496551738,3.7351,133.87,133.84,5.12783431]
[1725496552241,3.7349,133.88,133.84,19.16363431]
[1725496552644,0.05063589,133.89,133.84,15.42783431]
[1725496552846,3.7348,133.88,133.85,3.7355]
[1725496554543,0.05063589,133.89,133.84,5.12783431]
[1725496554747,10.3,133.87,133.84,0.04968698]
[1725496555349,3.7355,133.86,133.84,0.04968698]
[1725496558044,3.7357,133.85,133.84,0.04968698]
[1725496560457,3.78474883,133.86,133.84,0.04968698]
[1725496562050,3.7357,133.85,133.84,0.04968698]
[1725496562255,14.0357,133.85,133.84,0.04968698]
[1725496562656,3.7366,133.82,133.79,1.389]
[1725496563255,10.3,133.84,133.72,1.4237]
[1725496563455,10.3,133.84,133.75,10.3]
[1725496563456,10.3,133.82,133.75,10.3]
[1725496563651,3.79021459,133.8,133.77,0.05516071]
[1725496564263,0.05301459,133.8,133.78,14.0374]
[1725496565166,0.05301459,133.8,133.79,17.7216035]
[1725496565659,3.736,133.84,133.81,3.7367]
[1725496565857,2.3936,133.89,133.81,3.7367]
[1725496565858,10.3,133.87,133.81,10.3]
[1725496566257,3.7358,133.85,133.81,10.3]
[1725496566456,3.7358,133.85,133.82,10.3]
[1725496566657,10.3,133.87,133.82,10.3]
[1725496566858,0.05404397,133.85,133.84,10.3]
[1725496567057,0.05306237,133.86,133.84,10.3]
[1725496567258,0.05489984,133.86,133.85,10.3]
[1725496567765,0.05489984,133.86,133.85,15.4704]
[1725496569259,3.7341,133.91,133.87,3.7351]
[1725496569466,3.7341,133.91,133.87,14.0351]
[1725496569958,79.14532212,133.94,133.88,3.7348]
[1725496570159,0.05045806,133.92,133.9,0.05265758]
[1725496571359,3.78435806,133.92,133.9,0.05265758]
[1725496573563,3.734,133.91,133.9,0.05265758]
[1725496574156,3.78435806,133.92,133.9,0.05265758]
[1725496574773,3.734,133.91,133.9,0.05265758]
[1725496578773,3.78435806,133.92,133.9,0.05265758]
[1725496579876,3.734,133.91,133.9,0.05265758]
[1725496589675,0.05045806,133.92,133.9,0.05265758]
[1725496591272,0.05045806,133.92,133.9,3.78675758]
[1725496592376,0.05045806,133.92,133.9,0.05265758]
[1725496592573,3.78425806,133.92,133.9,0.05265758]
[1725496593076,0.05045806,133.92,133.9,0.05265758]
[1725496593676,3.734,133.91,133.9,0.05265758]